fUSD/lending_fUSD_20260406
["ID","MTS","AMOUNT","RATE_DAILY","PERIOD"]
[419897861,1775483442946,-8948.0424078,0.00014197,2]
[419897862,1775483442956,-3486.141,0.00014201,2]
[419897863,1775483442965,-182.53,0.00014201,2]
[419897864,1775483442976,-28465.27449306,0.00014208,2]
[419897865,1775483442988,-28355.5556747,0.00014244,2]
[419897866,1775483442998,-166.66,0.00014247,2]
[419897867,1775483443008,-150.0,0.00014247,2]
[419897868,1775483443018,-1007.68723107,0.00014247,2]
[419897869,1775483443028,-1038.69136306,0.00014247,2]
[419897870,1775483443038,-1000.0,0.00014247,2]
[419897871,1775483443048,-1000.0,0.00014247,2]
[419897872,1775483443058,-1000.0,0.00014247,2]
[419897873,1775483443070,-1000.0,0.00014247,2]
[419897874,1775483443080,-501.91295738,0.00014247,2]
[419897875,1775483443089,-1000.0,0.00014247,2]
[419897876,1775483443099,-501.68959435,0.00014247,2]
[419897877,1775483443109,-268.63911659,0.000143,2]
[419897878,1775483443119,-306.0,0.000143,2]
[419897879,1775483443129,-1000.0,0.000143,2]
[419897880,1775483443139,-313.0,0.000143,2]
[419897881,1775483443148,-215.15562511,0.00014301,2]
[419897882,1775483443158,-150.0,0.00014301,2]
[419897883,1775483443168,-150.0,0.00014301,2]
[419897884,1775483443178,-150.0,0.00014301,2]
[419897885,1775483443188,-150.00000001,0.00014301,2]
[419897886,1775483443198,-150.0,0.00014301,2]
[419897887,1775483443207,-150.0,0.00014301,2]
[419897888,1775483443217,-150.0,0.00014301,2]
[419897889,1775483443227,-150.0,0.00014301,2]
[419897890,1775483443237,-150.0,0.00014301,2]
[419897891,1775483443247,-150.0,0.00014301,2]
[419897892,1775483443258,-150.0,0.00014301,2]
[419897893,1775483443268,-150.0,0.00014301,2]
[419897894,1775483443278,-150.0,0.00014301,2]
[419897895,1775483443288,-152.0,0.00014305,17]
[419897896,1775483443298,-9108.44,0.00014309,2]
[419897897,1775483443307,-150.0,0.00014351,2]
[419897898,1775483443317,-150.0,0.0001437,2]
[419897899,1775483443327,-150.0,0.00014381,2]
[419897900,1775483443336,-150.0,0.00014381,2]
[419897901,1775483443347,-150.0,0.00014381,2]
[419897902,1775483443358,-166.66,0.00014384,2]
[419897903,1775483443368,-1105.79,0.00014384,2]
[419897904,1775483443378,-881.88,0.00014384,2]
[419897905,1775483443387,-150.0,0.00014385,2]
[419897906,1775483443397,-345.39,0.00014399,2]
[419897907,1775483443407,-162.535463,0.00014399,2]
[419897908,1775483443416,-385.673566,0.00014399,2]
[419897909,1775483443427,-162.535463,0.00014399,2]
[419897910,1775483443436,-638.40676,0.00014399,2]
[419897911,1775483443446,-151.0,0.00014399,2]
[419897912,1775483443456,-385.673566,0.00014399,2]
[419897913,1775483443465,-162.535463,0.00014399,2]
[419897914,1775483443475,-151.0,0.00014399,2]
[419897915,1775483443486,-638.40676,0.00014399,2]
[419897916,1775483443495,-180.594816,0.00014399,2]
[419897917,1775483443504,-385.673566,0.00014399,2]
[419897918,1775483443514,-162.535463,0.00014399,2]
[419897919,1775483443524,-283.368696,0.00014399,2]
[419897920,1775483443533,-638.40676,0.00014399,2]
[419897921,1775483443544,-385.673566,0.00014399,2]
[419897922,1775483443554,-151.0,0.00014399,2]
[419897923,1775483443564,-151.0,0.00014399,2]
[419897924,1775483443575,-638.40676,0.00014399,2]
[419897925,1775483443585,-301.982664,0.00014399,2]
[419897926,1775483443596,-151.0,0.00014399,2]
[419897927,1775483443606,-283.368696,0.00014399,2]
[419897928,1775483443616,-156.226732,0.00014399,2]
[419897929,1775483443627,-301.982664,0.00014399,2]
[419897931,1775483444234,-283.368696,0.00014399,2]
[419897932,1775483444246,-301.982664,0.00014399,2]
[419897933,1775483444255,-283.368696,0.00014399,2]
[419897934,1775483444266,-151.0,0.00014399,2]
[419897935,1775483444276,-301.982664,0.00014399,2]
[419897936,1775483444285,-2811.0,0.000144,2]
[419897937,1775483444295,-162.0,0.000144,2]
[419897938,1775483444305,-2811.0,0.000144,2]
[419897939,1775483444315,-1579.0,0.000144,2]
[419897940,1775483444325,-2811.0,0.000144,2]
[419897941,1775483444335,-2811.0,0.000144,2]
[419897942,1775483444345,-501.32196063,0.000144,2]
[419897943,1775483444355,-150.0,0.00014401,2]
[419897944,1775483444365,-150.0,0.0001444,2]
[419897945,1775483444375,-792.0,0.00014442,2]
[419897946,1775483444385,-150.0,0.00014446,2]
[419897947,1775483444396,-200.0,0.00014446,2]
[419897948,1775483444407,-1481.23780761,0.00014446,2]
[419897949,1775483444417,-187.78006525,0.00014446,2]
[419897950,1775483444427,-150.0,0.0001445,2]
[419897951,1775483444437,-200.0,0.00014452,2]
[419897952,1775483444447,-200.0,0.00014452,2]
[419897953,1775483444457,-200.0,0.00014452,2]
[419897954,1775483444467,-200.0,0.00014452,2]
[419897955,1775483444476,-200.0,0.00014452,2]
[419897956,1775483444486,-200.0,0.00014452,2]
[419897957,1775483444496,-200.0,0.00014452,2]
[419897958,1775483444505,-200.0,0.00014452,2]
[419897959,1775483444514,-271.0,0.00014452,2]
[419897960,1775483444524,-150.0,0.0001446,2]
[419897961,1775483444533,-150.0,0.0001446,2]
[419897962,1775483444543,-150.0,0.0001446,2]
[419897963,1775483444552,-150.0,0.0001446,2]
[419897964,1775483444562,-152.0,0.00014466,18]
[419897965,1775483444572,-150.0,0.00014469,2]
[419897966,1775483444582,-792.0,0.00014489,2]
[419897967,1775483444591,-150.0,0.000145,2]
[419897968,1775483444601,-1600.0,0.00014508,2]
[419897969,1775483444610,-150.0,0.00014509,2]
[419897970,1775483444620,-150.0,0.0001454,2]
[419897971,1775483444629,-150.0,0.0001454,2]
[419897972,1775483444639,-150.0,0.0001454,2]
[419897973,1775483444649,-1613.0,0.00014545,2]
[419897974,1775483444658,-6453.0,0.00014545,2]
[419897975,1775483444668,-150.0,0.0001455,2]
[419897976,1775483444677,-150.0,0.00014552,2]
[419897977,1775483444687,-950.0,0.00014556,2]
[419897978,1775483444697,-950.0,0.00014556,2]
[419897979,1775483444706,-950.0,0.00014556,2]
[419897980,1775483444715,-950.0,0.00014556,2]
[419897981,1775483444727,-950.0,0.00014556,2]
[419897982,1775483444737,-950.0,0.00014556,2]
[419897983,1775483444746,-950.0,0.00014556,2]
[419897984,1775483444756,-950.0,0.00014556,2]
[419897985,1775483444766,-950.0,0.00014556,2]
[419897986,1775483444776,-597.0,0.00014556,2]
[419897987,1775483444785,-150.0,0.00014566,2]
[419897988,1775483444795,-792.0,0.0001457,2]
[419897989,1775483444804,-792.0,0.00014573,2]
[419897990,1775483444813,-150.0,0.00014578,2]
[419897991,1775483444823,-500.0,0.00014582,2]
[419897992,1775483444832,-200.0,0.00014582,2]
[419897993,1775483444842,-150.0,0.0001459,2]
[419897994,1775483444851,-150.0,0.00014599,2]
[419897995,1775483444860,-150.0,0.00014619,2]
[419897996,1775483444870,-150.0,0.00014619,2]
[419897997,1775483444879,-150.0,0.00014619,2]
[419897998,1775483444889,-150.0,0.00014619,2]
[419897999,1775483444898,-152.0,0.00014626,19]
[419898000,1775483444908,-28465.27449306,0.00014631,2]
[419898001,1775483444918,-150.0,0.00014636,2]
[419898002,1775483444927,-150.0,0.00014647,2]
[419898003,1775483444938,-150.0,0.00014649,2]
[419898004,1775483444947,-500.0,0.00014649,2]
[419898005,1775483444956,-500.0,0.00014649,2]
[419898006,1775483444966,-500.0,0.00014649,2]
[419898007,1775483444975,-816.0,0.00014649,2]
[419898008,1775483444985,-500.0,0.00014649,2]
[419898009,1775483444995,-500.0,0.00014649,2]
[419898010,1775483445004,-500.0,0.00014649,2]
[419898011,1775483445014,-500.0,0.00014649,2]
[419898012,1775483445024,-500.0,0.00014649,2]
[419898013,1775483445034,-500.0,0.00014649,2]
[419898014,1775483445043,-500.0,0.00014649,2]
[419898015,1775483445053,-500.0,0.00014649,2]
[419898016,1775483445062,-500.0,0.00014649,2]
[419898017,1775483445072,-500.0,0.00014649,2]
[419898018,1775483445081,-500.0,0.00014649,2]
[419898019,1775483445090,-500.0,0.00014649,2]
[419898020,1775483445100,-500.0,0.00014649,2]
[419898021,1775483445109,-500.0,0.00014649,2]
[419898022,1775483445118,-500.0,0.00014649,2]
[419898023,1775483445128,-500.0,0.00014649,2]
[419898024,1775483445137,-500.0,0.00014649,2]
[419898025,1775483445147,-500.0,0.00014649,2]
[419898026,1775483445156,-500.0,0.00014649,2]
[419898027,1775483445165,-500.0,0.00014649,2]
[419898028,1775483445175,-500.0,0.00014649,2]
[419898029,1775483445184,-500.0,0.00014649,2]
[419898030,1775483445194,-674.0,0.00014649,2]
[419898031,1775483445203,-761.90011983,0.00014654,2]
[419898032,1775483445212,-28355.5556747,0.00014658,2]
[419898033,1775483445222,-881.88,0.00014658,2]
[419898034,1775483445232,-792.0,0.00014679,2]
[419898035,1775483445242,-150.0,0.00014699,2]
[419898036,1775483445252,-150.0,0.00014699,2]
[419898037,1775483445262,-150.0,0.00014699,2]
[419898038,1775483445271,-150.0,0.00014699,2]
[419898039,1775483445280,-155.0,0.00014712,2]
[419898040,1775483445290,-150.0,0.00014716,2]
[419898041,1775483445300,-150.0,0.0001472,2]
[419898042,1775483445310,-2811.0,0.0001472,2]
[419898043,1775483445319,-162.0,0.0001472,2]
[419898044,1775483445328,-1573.0,0.0001472,2]
[419898045,1775483445338,-1573.0,0.0001472,2]
[419898046,1775483445348,-2811.0,0.0001472,2]
[419898047,1775483445357,-150.0,0.00014735,2]
[419898048,1775483445367,-792.0,0.00014736,2]
[419898049,1775483445376,-168.0,0.00014746,2]
[419898050,1775483445386,-150.0,0.00014748,2]
[419898051,1775483445395,-792.0,0.00014752,2]
[419898052,1775483445405,-5188.9651064,0.00014777,2]
[419898053,1775483445416,-151.0,0.00014778,2]
[419898054,1775483445425,-222.360667,0.00014778,2]
[419898055,1775483445435,-222.360667,0.00014778,2]
[419898056,1775483445445,-151.0,0.00014778,2]
[419898057,1775483445455,-151.0,0.00014778,2]
[419898058,1775483445464,-650.472672,0.00014778,2]
[419898059,1775483445474,-222.360667,0.00014778,2]
[419898060,1775483445485,-151.0,0.00014778,2]
[419898061,1775483445495,-218.442213,0.00014778,2]
[419898062,1775483445504,-650.472672,0.00014778,2]
[419898063,1775483445513,-222.360667,0.00014778,2]
[419898064,1775483445523,-151.0,0.00014778,2]
[419898065,1775483445532,-218.442213,0.00014778,2]
[419898066,1775483445542,-151.0,0.00014778,2]
[419898067,1775483445551,-650.472672,0.00014778,2]
[419898068,1775483445561,-151.0,0.00014778,2]
[419898069,1775483445571,-218.442213,0.00014778,2]
[419898070,1775483445581,-650.472672,0.00014778,2]
[419898071,1775483445591,-151.0,0.00014778,2]
[419898072,1775483445600,-151.0,0.00014778,2]
[419898073,1775483445610,-220.011938,0.00014778,2]
[419898074,1775483445619,-218.442213,0.00014778,2]
[419898075,1775483445629,-151.0,0.00014778,2]
[419898076,1775483445638,-151.0,0.00014778,2]
[419898077,1775483445648,-625.113589,0.00014778,2]
[419898078,1775483445657,-625.113589,0.00014778,2]
[419898079,1775483445667,-151.0,0.00014778,2]
[419898080,1775483445677,-625.113589,0.00014778,2]
[419898081,1775483445686,-151.0,0.00014778,2]
[419898082,1775483445695,-625.113589,0.00014778,2]
[419898083,1775483445705,-151.0,0.00014778,2]
[419898084,1775483445715,-151.0,0.00014778,2]
[419898085,1775483445725,-151.0,0.00014778,2]
[419898086,1775483445735,-271.145621,0.00014778,2]
[419898087,1775483445745,-219.402605,0.00014778,2]
[419898088,1775483445755,-285.641939,0.00014778,2]
[419898089,1775483445764,-219.402605,0.00014778,2]
[419898090,1775483445774,-285.641939,0.00014778,2]
[419898091,1775483445783,-151.0,0.00014778,2]
[419898092,1775483445793,-219.402605,0.00014778,2]
[419898094,1775483445802,-280.336168,0.00014778,2]
[419898096,1775483445812,-285.641939,0.00014778,2]
[419898098,1775483445822,-219.402605,0.00014778,2]
[419898100,1775483445831,-280.336168,0.00014778,2]
[419898101,1775483445840,-285.641939,0.00014778,2]
[419898102,1775483445851,-280.336168,0.00014778,2]
[419898104,1775483445860,-627.413224,0.00014778,2]
[419898106,1775483445870,-707.708905,0.00014778,2]
[419898107,1775483445879,-627.413224,0.00014778,2]
[419898108,1775483445888,-627.413224,0.00014778,2]
[419898109,1775483445897,-707.708905,0.00014778,2]
[419898110,1775483445907,-627.413224,0.00014778,2]
[419898111,1775483445916,-707.708905,0.00014778,2]
[419898112,1775483445926,-280.336168,0.00014778,2]
[419898113,1775483445936,-707.708905,0.00014778,2]
[419898114,1775483445945,-151.0,0.00014778,2]
[419898115,1775483445954,-152.217072,0.00014778,2]
[419898116,1775483445964,-150.0,0.00014778,2]
[419898117,1775483445973,-150.0,0.00014778,2]
[419898118,1775483445983,-150.0,0.00014778,2]
[419898119,1775483445993,-150.0,0.00014778,2]
[419898120,1775483446002,-792.0,0.00014779,2]
[419898121,1775483446011,-150.0,0.00014785,2]
[419898122,1775483446020,-152.0,0.00014787,20]
[419898123,1775483446030,-500.0,0.00014795,2]
[419898124,1775483446040,-1517.22837258,0.00014795,2]
[419898125,1775483446050,-1467.27624458,0.00014795,2]
[419898126,1775483446059,-316.24666171,0.00014795,2]
[419898127,1775483446071,-250.0,0.00014795,2]
[419898128,1775483446080,-250.0,0.00014795,2]
[419898129,1775483446090,-1500.0,0.00014795,2]
[419898130,1775483446100,-500.0,0.00014795,2]
[419898131,1775483446110,-1332.9612991,0.00014798,2]
[419898132,1775483446120,-150.0,0.00014798,2]
[419898133,1775483446129,-150.0,0.00014803,2]
[419898134,1775483446138,-150.0,0.00014831,2]
[419898135,1775483446148,-150.0,0.00014831,2]
[419898136,1775483446158,-150.0,0.00014831,2]
[419898137,1775483446167,-150.0,0.00014848,2]
[419898138,1775483446176,-511.01,0.00014853,2]
[419898139,1775483446186,-396.31,0.00014853,2]
[419898140,1775483446196,-189.87,0.00014853,2]
[419898141,1775483446205,-1509.47,0.00014853,2]
[419898142,1775483446215,-7311.92,0.00014853,2]
[419898143,1775483446225,-150.0,0.00014854,2]
[419898144,1775483446235,-12639.6298436,0.00014857,2]
[419898145,1775483446244,-150.0,0.00014858,2]
[419898146,1775483446254,-150.0,0.00014858,2]
[419898147,1775483446263,-150.0,0.00014858,2]
[419898148,1775483446273,-386.721627,0.00014858,2]
[419898149,1775483446282,-386.721627,0.00014858,2]
[419898150,1775483446291,-193.146039,0.00014858,2]
[419898151,1775483446301,-151.0,0.00014858,2]
[419898152,1775483446310,-386.721627,0.00014858,2]
[419898153,1775483446320,-193.146039,0.00014858,2]
[419898154,1775483446330,-151.0,0.00014858,2]
[419898155,1775483446340,-151.0,0.00014858,2]
[419898156,1775483446349,-216.843867,0.00014858,2]
[419898157,1775483446359,-193.146039,0.00014858,2]
[419898158,1775483446369,-386.721627,0.00014858,2]
[419898159,1775483446379,-224.467375,0.00014858,2]
[419898160,1775483446388,-151.0,0.00014858,2]
[419898161,1775483446399,-216.843867,0.00014858,2]
[419898162,1775483446408,-193.146039,0.00014858,2]
[419898163,1775483446417,-151.0,0.00014858,2]
[419898164,1775483446427,-216.843867,0.00014858,2]
[419898165,1775483446436,-224.467375,0.00014858,2]
[419898166,1775483446445,-151.0,0.00014858,2]
[419898167,1775483446456,-216.843867,0.00014858,2]
[419898168,1775483446465,-224.467375,0.00014858,2]
[419898169,1775483446475,-224.467375,0.00014858,2]
[419898170,1775483446484,-245.308193,0.00014858,2]
[419898171,1775483446494,-151.0,0.00014858,2]
[419898172,1775483446503,-245.308193,0.00014858,2]
[419898173,1775483446513,-151.0,0.00014858,2]
[419898174,1775483446522,-245.308193,0.00014858,2]
[419898175,1775483446532,-151.0,0.00014858,2]
[419898176,1775483446541,-245.308193,0.00014858,2]
[419898177,1775483446551,-151.0,0.00014858,2]
[419898178,1775483446560,-615.483284,0.00014858,2]
[419898179,1775483446570,-151.0,0.00014858,2]
[419898182,1775483446770,-151.0,0.00014858,2]
[419898184,1775483446780,-615.483284,0.00014858,2]
[419898186,1775483446790,-151.0,0.00014858,2]
[419898187,1775483446799,-747.047384,0.00014858,2]
[419898188,1775483446808,-615.483284,0.00014858,2]
[419898189,1775483446816,-210.341065,0.00014858,2]
[419898190,1775483446825,-747.047384,0.00014858,2]
[419898191,1775483446834,-615.483284,0.00014858,2]
[419898192,1775483446843,-151.0,0.00014858,2]
[419898193,1775483446852,-747.047384,0.00014858,2]
[419898194,1775483446862,-151.0,0.00014858,2]
[419898195,1775483446871,-747.047384,0.00014858,2]
[419898196,1775483446880,-448.732298,0.00014858,2]
[419898197,1775483446889,-151.0,0.00014858,2]
[419898198,1775483446898,-448.732298,0.00014858,2]
[419898199,1775483446907,-151.0,0.00014858,2]
[419898200,1775483446916,-151.0,0.00014858,2]
[419898201,1775483446925,-151.0,0.00014858,2]
[419898202,1775483446934,-151.0,0.00014858,2]
[419898203,1775483446943,-151.0,0.00014858,2]
[419898204,1775483446952,-151.0,0.00014858,2]
[419898205,1775483446961,-448.732298,0.00014858,2]
[419898206,1775483446970,-185.373592,0.00014858,2]
[419898207,1775483446979,-448.732298,0.00014858,2]
[419898208,1775483446989,-185.373592,0.00014858,2]
[419898209,1775483446998,-185.373592,0.00014858,2]
[419898210,1775483447007,-185.373592,0.00014858,2]
[419898211,1775483447015,-168.0,0.00014876,2]
[419898212,1775483447025,-3000.0,0.00014878,2]
[419898213,1775483447034,-150.0,0.00014879,2]
[419898214,1775483447043,-150.0,0.00014887,2]
[419898215,1775483447052,-150.0,0.00014897,2]
[419898216,1775483447062,-2000.0,0.000149,5]
[419898217,1775483447071,-150.0,0.00014907,2]
[419898218,1775483447080,-150.0,0.00014907,2]
[419898219,1775483447090,-150.0,0.00014907,2]
[419898220,1775483447099,-834.300445,0.00014915,2]
[419898221,1775483447108,-1148.372646,0.00014915,2]
[419898222,1775483447118,-150.0,0.00014923,2]
[419898223,1775483447127,-507.09,0.00014932,2]
[419898224,1775483447136,-150.0,0.00014937,2]
[419898225,1775483447145,-150.0,0.00014937,2]
[419898226,1775483447154,-150.0,0.00014937,2]
[419898227,1775483447163,-150.0,0.00014937,2]
[419898228,1775483447172,-350.0,0.00014939,2]
[419898229,1775483447181,-10000.0,0.0001494,2]
[419898230,1775483447190,-150.0,0.00014947,2]
[419898231,1775483447199,-152.0,0.00014948,21]
[419898232,1775483447208,-500.0,0.00014958,3]
[419898233,1775483447217,-1000.0,0.00014962,2]
[419898234,1775483447226,-792.0,0.00014962,2]
[419898235,1775483447237,-150.0,0.0001497,2]
[419898236,1775483447247,-168.0,0.00014982,2]
[419898237,1775483447259,-500.0,0.00014988,2]
[419898238,1775483447270,-150.0,0.00014992,2]
[419898239,1775483447282,-200.0,0.00014994,2]
[419898240,1775483447293,-1536.04360649,0.00014994,2]
[419898241,1775483447304,-194.72792766,0.00014994,2]
[419898242,1775483447315,-150.0,0.00014997,2]
[419898243,1775483447327,-357.58344534,0.00014998,2]
[419898244,1775483448541,-434.41655466,0.00014998,2]
[419898245,1775483448553,-160.0,0.00015,2]
[419898246,1775483448565,-300.0,0.00015,2]
[419898247,1775483448576,-467.58344534,0.00015013,2]
[419898248,1775483448590,-324.41655466,0.00015013,2]
[419898249,1775483448602,-150.0,0.00015016,2]
[419898250,1775483448613,-150.0,0.00015016,2]
[419898251,1775483448622,-150.0,0.00015016,2]
[419898252,1775483448630,-479.03920742,0.00015022,2]
[419898253,1775483448714,-262.388848,0.00014399,2]
[419898254,1775483448724,-312.96079258,0.00015022,2]
[419898255,1775483448733,-150.0,0.00015024,2]
[419898256,1775483448744,-1573.0,0.0001504,2]
[419898257,1775483448753,-1573.0,0.0001504,2]
[419898258,1775483448763,-1573.0,0.0001504,2]
[419898259,1775483448772,-2811.0,0.0001504,2]
[419898260,1775483448782,-1573.0,0.0001504,2]
[419898261,1775483448791,-2809.0,0.0001504,2]
[419898262,1775483448801,-150.0,0.00015046,2]
[419898263,1775483448811,-150.0,0.00015052,2]
[419898264,1775483448820,-23195.52239699,0.00015054,2]
[419898265,1775483449104,-284.430263,0.00014399,2]
[419898266,1775483449114,-151.0,0.00014399,2]
[419898267,1775483449124,-157.411895,0.00014778,2]
[419898268,1775483449133,-1706.91207108,0.00015054,2]
[419898269,1775483449151,-340.44946056,0.00015054,2]
[419898270,1775483449337,-3222.39056443,0.00015054,2]
[419898271,1775483449348,-150.0,0.00015054,2]
[419898272,1775483449358,-500.0,0.00015058,2]
[419898273,1775483449368,-2000.0,0.00015058,2]
[419898274,1775483449378,-150.0,0.00015061,2]
[419898275,1775483449388,-1105.79,0.00015068,2]
[419898276,1775483449398,-520.81,0.00015068,2]
[419898277,1775483449408,-151.0,0.00015068,2]
[419898278,1775483449417,-800.91792691,0.00015068,2]
[419898279,1775483449427,-28355.5556747,0.00015072,2]
[419898280,1775483449437,-227.16914829,0.00015077,2]
[419898281,1775483449447,-150.0,0.00015096,2]
[419898282,1775483449458,-150.0,0.00015096,2]
[419898283,1775483449467,-150.0,0.00015096,2]
[419898284,1775483449479,-150.0,0.00015096,2]
[419898285,1775483449489,-150.0,0.00015096,2]
[419898286,1775483449498,-150.0,0.00015096,2]
[419898287,1775483449508,-150.0,0.00015096,2]
[419898288,1775483449518,-475.647627,0.00015098,2]
[419898289,1775483449528,-151.0,0.00015098,2]
[419898290,1775483449538,-475.647627,0.00015098,2]
[419898291,1775483449548,-151.0,0.00015098,2]
[419898292,1775483449558,-475.647627,0.00015098,2]
[419898293,1775483449567,-151.0,0.00015098,2]
[419898294,1775483449577,-475.647627,0.00015098,2]
[419898295,1775483449586,-151.0,0.00015098,2]
[419898296,1775483449596,-204.063944,0.00015098,2]
[419898297,1775483449605,-218.912774,0.00015098,2]
[419898298,1775483449615,-1155.437556,0.00015098,2]
[419898299,1775483449625,-151.0,0.00015098,2]
[419898300,1775483449634,-218.912774,0.00015098,2]
[419898301,1775483449644,-410.688992,0.00015098,2]
[419898302,1775483449653,-1155.437556,0.00015098,2]
[419898303,1775483449663,-151.0,0.00015098,2]
[419898304,1775483449672,-218.912774,0.00015098,2]
[419898305,1775483449683,-410.688992,0.00015098,2]
[419898306,1775483449692,-1155.437556,0.00015098,2]
[419898307,1775483449702,-218.912774,0.00015098,2]
[419898308,1775483449711,-151.0,0.00015098,2]
[419898309,1775483449720,-410.688992,0.00015098,2]
[419898310,1775483449730,-1155.437556,0.00015098,2]
[419898311,1775483449740,-151.0,0.00015098,2]
[419898312,1775483449749,-410.688992,0.00015098,2]
[419898313,1775483449759,-151.0,0.00015098,2]
[419898314,1775483449769,-151.0,0.00015098,2]
[419898315,1775483449779,-151.0,0.00015098,2]
[419898316,1775483449789,-151.0,0.00015098,2]
[419898317,1775483449798,-151.0,0.00015098,2]
[419898318,1775483449808,-151.0,0.00015098,2]
[419898319,1775483449817,-151.0,0.00015098,2]
[419898320,1775483449827,-151.0,0.00015098,2]
[419898321,1775483449836,-401.732674,0.00015098,2]
[419898322,1775483449846,-280.134349,0.00015098,2]
[419898323,1775483449856,-401.732674,0.00015098,2]
[419898324,1775483449865,-280.134349,0.00015098,2]
[419898325,1775483449875,-193.031338,0.00015098,2]
[419898326,1775483449885,-401.732674,0.00015098,2]
[419898327,1775483449894,-280.134349,0.00015098,2]
[419898328,1775483449904,-193.031338,0.00015098,2]
[419898329,1775483449914,-401.732674,0.00015098,2]
[419898330,1775483449923,-280.134349,0.00015098,2]
[419898331,1775483449933,-193.031338,0.00015098,2]
[419898332,1775483449942,-151.0,0.00015098,2]
[419898333,1775483449952,-151.0,0.00015098,2]
[419898334,1775483449961,-151.0,0.00015098,2]
[419898335,1775483449971,-193.031338,0.00015098,2]
[419898336,1775483449980,-151.0,0.00015098,2]
[419898337,1775483449990,-151.0,0.00015098,2]
[419898338,1775483449999,-151.0,0.00015098,2]
[419898339,1775483450009,-255.851643,0.00015098,2]
[419898340,1775483450019,-255.851643,0.00015098,2]
[419898341,1775483450028,-255.851643,0.00015098,2]
[419898342,1775483450038,-255.851643,0.00015098,2]
[419898343,1775483450047,-151.0,0.00015098,2]
[419898344,1775483450057,-287.14623761,0.000151,2]
[419898345,1775483450066,-233.9135,0.000151,2]
[419898346,1775483450076,-235.82404506,0.00015105,2]
[419898347,1775483450086,-152.0,0.00015108,22]
[419898348,1775483450096,-792.0,0.00015128,2]
[419898349,1775483450106,-168.0,0.00015129,2]
[419898350,1775483450115,-150.0,0.0001513,2]
[419898351,1775483450125,-150.0,0.00015138,2]
[419898352,1775483450135,-151.0,0.0001514,2]
[419898353,1775483450144,-151.0,0.0001514,2]
[419898354,1775483450154,-151.0,0.0001514,2]
[419898355,1775483450164,-151.0,0.0001514,2]
[419898356,1775483450174,-151.0,0.0001514,2]
[419898357,1775483450183,-151.0,0.0001514,2]
[419898358,1775483450192,-151.0,0.0001514,2]
[419898359,1775483450202,-151.0,0.0001514,2]
[419898360,1775483450211,-151.0,0.0001514,2]
[419898361,1775483450221,-151.0,0.0001514,2]
[419898362,1775483450230,-151.0,0.0001514,2]
[419898363,1775483450239,-150.0,0.00015146,2]
[419898364,1775483450249,-1000.0,0.00015148,2]
[419898365,1775483450259,-1500.0,0.00015152,2]
[419898366,1775483450269,-150.0,0.00015168,2]
[419898367,1775483450280,-150.0,0.00015175,2]
[419898368,1775483450289,-150.0,0.00015175,2]
[419898369,1775483450299,-150.0,0.00015175,2]
[419898370,1775483450309,-10505.0763304,0.00015177,2]
[419898371,1775483450319,-151.0,0.00015182,2]